bitfinex-derivatives/quotes_SOLF0:USTF0_20250113
["timestamp","ask_amount","ask_price","bid_price","bid_amount"]
[1736750073929,17.24599495,183.35,183.25,11.58599495]
[1736750075232,2.7289,183.32,183.28,2.7295]
[1736750077435,2.7293,183.3,183.25,2.7298]
[1736750077631,11.58599495,183.32,183.21,5.8862]
[1736750078032,2.7297,183.27,183.22,2.7303]
[1736750078234,2.7297,183.27,183.21,5.8862]
[1736750078434,11.58599495,183.32,183.21,5.8862]
[1736750079032,2.7292,183.31,183.25,2.73]
[1736750079233,11.58599495,183.33,183.22,11.58599495]
[1736750079934,2.7292,183.31,183.26,2.7297]
[1736750080432,2.7296,183.28,183.22,11.58599495]
[1736750080633,11.58599495,183.3,183.21,5.8862]
[1736750080933,11.58599495,183.3,183.16,176.10844633]
[1736750081134,2.7299,183.26,183.21,2.7305]
[1736750082233,2.7303,183.24,183.19,2.7308]
[1736750082431,17.24599495,183.27,183.16,181.80424633]
[1736750083230,2.7301,183.25,183.2,2.7306]
[1736750083534,17.24599495,183.27,183.16,181.80424633]
[1736750083729,17.24599495,183.27,183.16,193.39024128]
[1736750084236,2.7299,183.26,183.21,2.7305]
[1736750084629,17.24599495,183.27,183.21,2.7305]
[1736750084935,2.73,183.25,183.21,2.7305]
[1736750087332,5.66,183.27,183.21,2.7305]
[1736750087533,2.7299,183.26,183.21,2.7305]
[1736750087726,10.14840215,183.26,183.21,2.7305]
[1736750088237,7.41850215,183.26,183.23,2.7302]
[1736750088438,5.66,183.3,183.23,10.14870215]
[1736750088633,13.07850215,183.3,183.23,10.14870215]
[1736750088831,13.07850215,183.3,183.23,7.41850215]
[1736750089138,2.7294,183.29,183.24,2.73]
[1736750089335,7.41850215,183.3,183.24,2.73]
[1736750089535,2.7295,183.28,183.23,10.14870215]
[1736750089735,10.14800215,183.28,183.23,10.14870215]
[1736750090238,2.7297,183.27,183.23,10.14870215]
[1736750090938,2.7297,183.27,183.23,2.7302]
[1736750093241,7.41850215,183.28,183.16,181.80424633]
[1736750093436,7.41850215,183.28,183.2,7.41850215]
[1736750093738,2.73,183.25,183.21,2.7305]
[1736750094844,7.41850215,183.27,183.21,2.7305]
[1736750095050,2.7299,183.26,183.21,2.7305]
[1736750095341,7.41850215,183.27,183.16,181.80424633]
[1736750095641,2.7301,183.25,183.21,7.41850215]
[1736750095947,2.7301,183.25,183.2,2.7306]
[1736750097038,7.41850215,183.27,183.2,2.7306]
[1736750097240,7.41850215,183.25,183.17,2.7311]
[1736750097440,8.93019875,183.3,183.18,7.41850215]
[1736750097640,2.7305,183.22,183.18,7.41850215]
[1736750097846,7.41850215,183.26,183.18,10.14950215]
[1736750098240,2.7303,183.23,183.2,7.41850215]
[1736750098444,7.41850215,183.26,183.2,7.41850215]
[1736750100145,2.7301,183.24,183.2,10.14920215]
[1736750100645,2.7302,183.24,183.2,10.14920215]
[1736750101146,2.73,183.25,183.2,10.14920215]
[1736750101645,2.7301,183.24,183.2,10.14920215]
[1736750102240,2.7304,183.22,183.17,2.731]
[1736750102443,2.7304,183.22,183.19,7.41850215]
[1736750102845,2.7304,183.22,183.16,105.6958]
[1736750103044,2.7306,183.21,183.19,7.41850215]
[1736750103247,7.41850215,183.25,183.16,105.6958]
[1736750103550,2.7303,183.23,183.18,7.41850215]
[1736750103748,7.41850215,183.25,183.18,7.41850215]
[1736750104148,7.41850215,183.25,183.16,106.5542]
[1736750104346,7.41850215,183.23,183.16,107.41850215]
[1736750104547,5.66,183.22,183.16,107.41850215]
[1736750105046,2.7308,183.2,183.18,7.41850215]
[1736750105249,5.66,183.22,183.18,7.41850215]
[1736750105451,8.3905,183.22,183.18,7.41850215]
[1736750105643,5.66,183.22,183.18,7.41850215]
[1736750105844,5.66,183.22,183.16,100.0]
[1736750106046,5.66,183.22,183.16,107.41850215]
[1736750106346,13.07850215,183.22,183.16,107.41850215]
[1736750106948,2.731,183.19,183.16,100.0]
[1736750107146,13.07850215,183.22,183.16,100.0]
[1736750107947,5.66,183.22,183.16,107.41850215]
[1736750108146,3.9585,183.28,183.2,7.41850215]
[1736750108354,8.91822325,183.27,183.22,7.41850215]
[1736750108747,8.91822325,183.27,183.24,7.41850215]
[1736750109052,7.41850215,183.27,183.21,7.41850215]
[1736750109247,5.66,183.29,183.18,3.7499]
[1736750109248,7.41850215,183.25,183.19,7.41850215]
[1736750109449,7.41850215,183.25,183.2,7.41850215]
[1736750109952,2.7304,183.22,183.2,7.41850215]
[1736750110146,7.41850215,183.25,183.18,1.8494]
[1736750110454,7.41850215,183.25,183.19,7.41850215]
[1736750110753,7.41850215,183.25,183.19,10.14930215]
[1736750111148,7.41850215,183.27,183.19,7.41850215]
[1736750111348,7.41850215,183.27,183.21,7.41850215]
[1736750111949,10.14820215,183.27,183.22,2.7304]
[1736750112855,2.7298,183.26,183.21,10.14900215]
[1736750113353,2.7298,183.26,183.21,2.7305]
[1736750114554,2.7298,183.26,183.22,2.7304]
[1736750114754,194.0,183.28,183.16,100.0]
[1736750115051,220.0,183.16,183.1,31.04428523]
[1736750115250,6.08,183.15,183.1,31.04428523]
[1736750115451,10.15060215,183.11,183.1,31.04428523]
[1736750115651,2.7321,183.11,183.1,31.04428523]
[1736750115854,7.41850215,183.11,183.1,31.04428523]
[1736750116352,7.41850215,183.13,182.93,91.11920531]
[1736750116858,7.41850215,183.12,183.07,2.7326]
[1736750117055,7.41850215,183.1,183.05,64.64896316]
[1736750117256,7.41850215,183.1,182.96,6.08]
[1736750117257,7.41850215,183.06,182.93,91.11920531]
[1736750117559,11.62848615,183.0,182.9,91.11920531]
[1736750118262,11.62848615,183.0,182.92,2.7348]
[1736750118557,11.62848615,183.0,182.89,15.47198615]
[1736750119756,11.62848615,183.03,182.89,15.47198615]
[1736750119954,11.62848615,183.03,182.92,11.62848615]
[1736750120355,11.62848615,183.03,182.99,2.7338]
[1736750120659,17.80848615,183.06,182.99,2.7338]
[1736750120860,11.62848615,183.09,182.95,11.62848615]
[1736750121063,11.62848615,183.09,183.04,2.733]
[1736750122557,11.62848615,183.06,182.99,5.8098]
[1736750123164,11.62848615,183.06,183.0,2.7337]
[1736750123963,11.62848615,183.03,182.82,93.76]
[1736750124165,11.62848615,182.99,182.88,1.827]
[1736750124358,6.18,183.03,182.88,1.827]
[1736750124359,6.18,183.03,182.88,13.45548615]
[1736750124563,11.62848615,183.01,182.88,13.45548615]
[1736750124759,11.62848615,183.01,182.96,2.7343]
[1736750125265,11.62848615,183.01,182.88,13.45548615]
[1736750125466,6.18,183.03,182.88,13.45548615]
[1736750125467,6.18,183.03,182.97,2.7341]
[1736750125867,8.9133,183.03,182.96,2.7343]
[1736750126371,2.7337,183.0,182.93,2.7347]
[1736750126972,18.59859036,183.01,182.88,1.827]
[1736750127168,6.18,183.03,182.88,1.827]
[1736750127567,2.7334,183.02,182.96,2.7343]
[1736750128072,2.7334,183.02,182.88,1.827]
[1736750128269,6.18,183.03,182.9,18.59859036]
[1736750128472,6.18,183.03,182.93,18.59859036]
[1736750128771,194.0,183.16,182.94,1.8948]
[1736750129075,91.11920531,183.17,182.94,1.8948]
[1736750129076,24.77859036,183.15,183.08,2.7325]
[1736750129267,18.59859036,183.12,183.0,3.8672]
[1736750129876,2.7324,183.09,183.0,3.8672]
[1736750130075,8.9324,183.09,183.0,3.8672]
[1736750130277,8.9324,183.09,183.03,2.7332]
[1736750130471,8.9324,183.09,183.0,3.8672]
[1736750130472,6.2,183.09,183.0,3.8672]
[1736750131077,27.53049036,183.12,183.05,2.7329]
[1736750131276,8.9319,183.12,183.0,3.8672]
[1736750132080,2.7321,183.11,183.0,3.8672]
[1736750132381,6.2,183.12,183.0,3.8672]
[1736750132875,6.2,183.12,183.05,2.7329]
[1736750133181,6.2,183.12,183.0,3.8672]
[1736750133377,8.9319,183.12,183.06,2.7327]
[1736750133679,6.2,183.12,183.0,3.8672]
[1736750133875,6.2,183.12,183.0,22.46579036]
[1736750134680,6.2,183.12,183.07,2.7326]
[1736750135180,6.2,183.12,183.0,3.8672]
[1736750135376,2.7321,183.11,183.04,2.733]
[1736750135572,6.2,183.12,183.04,2.733]
[1736750136671,2.7324,183.09,183.04,2.733]
[1736750136875,6.2,183.12,183.04,2.733]
[1736750137076,2.7322,183.1,183.04,2.733]
[1736750137473,6.2,183.12,183.0,3.8672]
[1736750137678,2.7324,183.09,183.03,2.7332]
[1736750138973,2.7324,183.09,183.04,2.7331]
[1736750140580,18.59859036,183.1,183.02,2.7334]
[1736750140980,21.33089036,183.1,183.04,2.7331]
[1736750141879,2.7324,183.09,183.04,2.7331]
[1736750142273,18.59859036,183.1,183.0,3.8672]
[1736750142483,18.59859036,183.1,183.05,2.7329]
[1736750143085,21.33089036,183.1,183.05,2.7329]
[1736750143284,18.59859036,183.1,183.0,3.8672]
[1736750143485,6.2,183.12,183.0,3.8672]
[1736750143881,6.2,183.12,183.04,2.7331]
[1736750144282,6.2,183.12,183.0,3.8672]
[1736750144483,6.2,183.12,183.03,2.7332]
[1736750144484,18.59859036,183.1,183.03,2.7332]
[1736750144783,2.7325,183.08,183.03,2.7332]
[1736750145281,18.59859036,183.1,183.0,3.8672]
[1736750145484,2.7323,183.1,183.0,3.8672]
[1736750147081,6.2,183.12,183.0,3.8672]
[1736750147386,11.61703367,183.07,183.0,3.8672]
[1736750148281,2.7329,183.06,183.01,2.7335]
[1736750148487,11.61703367,183.04,183.01,2.7335]
[1736750149384,11.61703367,183.04,183.0,2.7337]
[1736750151687,14.35013367,183.04,183.0,2.7337]
[1736750153681,17.69703367,183.04,182.95,88.0]
[1736750153887,2.7333,183.03,182.95,88.0]
[1736750155085,17.69703367,183.04,182.95,88.0]
[1736750155596,17.69703367,183.04,182.99,2.7338]
[1736750156493,11.61703367,183.0,182.95,88.0]
[1736750157296,14.35073367,183.0,182.96,2.7342]
[1736750157489,11.61703367,183.0,182.95,88.0]
[1736750157997,11.61703367,183.03,182.95,88.0]
[1736750158797,14.35033367,183.03,182.98,2.7339]
[1736750158996,11.61703367,183.03,182.95,88.0]
[1736750160197,11.61703367,183.06,182.96,11.61703367]
[1736750160400,11.61703367,183.06,182.97,1.9156]
[1736750160595,6.08,183.08,182.97,1.9156]
[1736750160795,11.61703367,183.09,182.97,1.9156]
[1736750160995,17.67703367,183.09,183.03,2.7331]
[1736750161898,17.67703367,183.09,182.97,1.9156]
[1736750162096,17.67703367,183.09,182.97,13.53263367]
[1736750162296,20.40943367,183.09,182.97,13.53263367]
[1736750162498,17.67703367,183.09,183.05,2.7329]
[1736750162794,17.67703367,183.09,182.97,13.53263367]
[1736750162997,17.67703367,183.09,182.97,1.9156]
[1736750163202,11.61703367,183.06,182.97,1.9156]
[1736750163495,11.61703367,183.05,182.97,1.9156]
[1736750163697,11.61703367,183.08,182.97,1.9156]
[1736750164495,11.61703367,183.05,182.97,1.9156]
[1736750165300,11.61703367,183.06,182.95,88.0]
[1736750165500,11.61703367,182.99,182.95,88.0]
[1736750167099,11.61703367,182.99,182.95,90.7344]
[1736750167404,11.61703367,182.96,182.81,60.12310391]
[1736750167699,11.61703367,182.93,182.84,1.9836]
[1736750168000,11.61703367,182.9,182.84,1.9836]
[1736750168399,11.61703367,182.92,182.84,1.9836]
[1736750168600,194.0,183.01,182.86,11.61703367]
[1736750168800,2.7338,183.0,182.93,2.7347]
[1736750169001,102.73623898,183.01,182.89,11.61703367]
[1736750169196,102.73623898,183.01,182.9,1.8668]
[1736750169403,91.11920531,183.01,182.99,2.7338]
[1736750169603,91.11920531,183.01,182.92,11.61703367]
[1736750169804,91.11920531,183.01,182.93,1.9817]
[1736750170004,11.61703367,183.07,182.94,13.60063367]
[1736750170203,14.34973367,183.07,183.0,2.7337]
[1736750170406,11.61703367,183.07,182.94,13.60063367]
[1736750170801,285.11920531,183.13,182.97,11.61703367]
[1736750171098,11.61703367,183.11,182.98,1.9839]
[1736750171300,2.7322,183.1,183.01,2.7335]
[1736750171502,11.61703367,183.08,182.98,1.9839]
[1736750172198,11.61703367,183.05,182.94,1.9836]
[1736750172397,11.61703367,183.02,182.94,1.9836]
[1736750172600,2.7336,183.01,182.95,2.7344]
[1736750172796,11.61703367,183.06,182.94,1.9836]
[1736750173204,8.91650787,183.05,182.94,1.9836]
[1736750173399,11.61703367,183.06,182.94,1.9836]
[1736750173600,11.61703367,183.06,182.95,11.61703367]
[1736750174001,11.61703367,183.06,182.98,2.7339]
[1736750174302,11.61703367,183.06,182.95,11.61703367]
[1736750174505,238.19717236,183.09,183.03,2.7332]
[1736750174703,147.07796705,183.09,183.03,2.7332]
[1736750175408,144.34556705,183.09,182.98,11.61703367]
[1736750175606,144.34556705,183.09,182.99,1.9337]
[1736750176111,2.7325,183.08,183.02,2.7332]
[1736750176302,144.34556705,183.09,182.99,1.9337]
[1736750176606,2.7327,183.07,183.02,2.7334]
[1736750178208,2.7326,183.08,183.02,2.7334]
[1736750178611,144.34556705,183.09,183.02,2.7334]
[1736750178812,14.34983367,183.06,183.0,2.7336]
[1736750179000,11.61703367,183.06,183.0,2.7336]
[1736750179201,11.61703367,183.06,182.94,13.60063367]
[1736750179402,11.61703367,183.06,182.99,2.7338]
[1736750180008,2.7328,183.06,182.94,13.60063367]
[1736750180209,14.34983367,183.06,183.0,2.7336]
[1736750180405,11.61703367,183.06,182.94,13.60063367]
[1736750180604,144.34556705,183.09,182.97,11.61703367]
[1736750180805,144.34556705,183.09,183.06,2.7328]
[1736750181001,144.34556705,183.09,182.98,1.876]
[1736750181808,144.34556705,183.09,183.02,2.7333]
[1736750182011,11.61703367,183.06,182.98,1.876]
[1736750182912,11.61703367,183.06,182.94,13.60063367]
[1736750183107,11.61703367,183.06,182.95,1.8863]
[1736750183611,144.34556705,183.09,182.97,11.61703367]
[1736750183803,144.34556705,183.09,182.96,11.61703367]
[1736750184008,2.7326,183.08,183.02,2.7333]
[1736750184416,144.34556705,183.09,182.96,11.61703367]
[1736750184615,2.733,183.05,183.0,2.7336]
[1736750184817,2.733,183.05,182.96,11.61703367]
[1736750185114,144.34556705,183.09,182.96,11.61703367]
[1736750185314,147.07806705,183.09,183.03,2.7332]
[1736750185517,147.07806705,183.09,182.96,11.61703367]
[1736750185917,285.11920531,183.14,182.95,1.8863]
[1736750185918,11.61703367,183.12,182.99,11.61703367]
[1736750186312,11.61703367,183.12,183.02,11.61703367]
[1736750186508,11.61703367,183.12,183.03,5.7871]
[1736750186715,91.11920531,183.14,183.1,2.7322]
[1736750187114,91.11920531,183.14,183.03,5.7871]
[1736750187317,91.11920531,183.17,183.05,11.61703367]
[1736750187918,11.61703367,183.15,183.03,5.7871]
[1736750188318,11.61703367,183.09,183.04,2.733]
[1736750188518,11.61703367,183.09,183.03,3.8258]
[1736750188818,11.61703367,183.09,183.07,2.7326]
[1736750189017,11.61703367,183.12,183.03,3.8258]
[1736750189419,11.61703367,183.12,183.08,2.7324]
[1736750189608,11.61703367,183.12,183.03,3.8258]
[1736750190016,2.7321,183.11,183.05,2.7329]
[1736750190218,11.61703367,183.12,183.03,3.8258]
[1736750191111,11.61703367,183.12,183.07,2.7326]
[1736750191318,11.61703367,183.12,183.03,3.8258]
[1736750191617,11.61703367,183.09,182.96,11.61703367]
[1736750191923,11.61703367,183.09,182.97,1.8368]
[1736750192310,14.34953367,183.09,183.03,2.7332]
[1736750193021,11.61703367,183.06,182.97,1.8368]
[1736750193616,2.733,183.05,183.01,2.7335]
[1736750194121,2.733,183.05,182.97,1.8368]
[1736750194527,11.61703367,183.06,182.97,1.8368]
[1736750194720,11.61703367,183.03,182.9,13.54603367]
[1736750194918,11.61703367,183.03,182.9,15.56263367]
[1736750195115,11.61703367,183.06,182.9,3.9456]
[1736750195116,11.61703367,183.0,182.9,3.9456]
[1736750195418,18.60470457,183.01,182.9,3.9456]
[1736750196520,18.60470457,182.98,182.9,1.929]
[1736750196714,18.60470457,182.98,182.89,11.01802822]
[1736750196917,194.0,183.05,182.89,11.01802822]
[1736750196918,18.60470457,183.01,182.89,11.01802822]
[1736750197119,18.60470457,183.04,182.9,3.871]
[1736750198117,2.7336,183.01,182.95,2.7343]
[1736750198322,18.60470457,183.04,182.9,3.871]
[1736750199119,2.7338,183.0,182.94,2.7345]
[1736750199827,18.60470457,183.01,182.9,3.871]
[1736750201430,18.60470457,183.04,182.9,3.871]
[1736750202230,2.7338,183.0,182.94,2.7345]
[1736750202530,18.60470457,183.04,182.9,3.871]
[1736750202827,18.60470457,183.04,182.97,2.7341]
[1736750203425,2.7335,183.02,182.96,2.7343]
[1736750203627,18.60470457,183.04,182.9,3.871]
[1736750204128,2.7333,183.03,182.96,2.7342]
[1736750204424,18.60470457,183.04,182.9,3.871]
[1736750205126,2.7335,183.01,182.96,2.7343]
[1736750205626,18.60470457,183.04,182.96,2.7343]
[1736750206529,21.33790457,183.04,182.98,2.734]
[1736750206923,2.733,183.05,182.99,2.7337]
[1736750207334,2.733,183.05,182.91,20.52700457]
[1736750207526,18.60470457,183.07,182.91,1.9223]
[1736750207731,18.60470457,183.04,182.91,1.9223]
[1736750208131,18.60470457,183.01,182.92,2.7347]
[1736750208335,18.60470457,183.01,182.9,3.871]
[1736750209034,2.734,182.99,182.93,2.7347]
[1736750209738,2.734,182.99,182.94,2.7345]
[1736750210439,18.60470457,183.01,182.9,3.871]
[1736750211335,2.7343,182.96,182.9,3.871]
[1736750211835,2.7343,182.96,182.89,11.01802822]
[1736750212138,2.7343,182.96,182.91,2.735]
[1736750212732,18.60470457,182.95,182.84,3.8724]
[1736750212936,18.60470457,182.95,182.78,1.9296]
[1736750213134,18.60470457,182.95,182.8,3.9156]
[1736750213337,2.7354,182.89,182.84,2.7361]
[1736750214137,2.735,182.92,182.87,2.7355]
[1736750214340,18.60470457,182.97,182.8,3.9156]
[1736750215535,11.6377167,182.94,182.82,11.6377167]
[1736750215740,11.6377167,182.97,182.85,11.6377167]
[1736750216138,2.7344,182.96,182.9,2.7351]
[1736750216333,11.6377167,182.97,182.85,11.6377167]
[1736750216939,2.7344,182.95,182.85,11.6377167]
[1736750217136,11.6377167,182.97,182.85,11.6377167]
[1736750217341,2.7347,182.94,182.82,11.6377167]
[1736750218443,2.7344,182.96,182.82,11.6377167]
[1736750218643,2.7344,182.96,182.8,3.9156]
[1736750218644,11.6377167,182.97,182.85,11.6377167]
[1736750218845,11.6377167,182.97,182.91,2.735]
[1736750219241,11.6377167,182.97,182.85,11.6377167]
[1736750219438,11.6377167,182.97,182.89,2.7352]
[1736750219637,11.6377167,182.97,182.85,11.6377167]
[1736750220036,11.6377167,182.91,182.8,3.9156]
[1736750220644,2.7352,182.9,182.84,2.7359]
[1736750220944,11.6377167,182.91,182.84,2.7359]
[1736750221647,2.7355,182.88,182.83,2.7362]
[1736750221843,11.6377167,182.91,182.8,3.9156]
[1736750222043,11.6377167,182.88,182.8,3.9156]
[1736750223345,11.6377167,182.91,182.8,3.9156]
[1736750223545,2.7355,182.88,182.83,2.7362]
[1736750223745,11.6377167,182.91,182.8,3.9156]
[1736750223945,11.6377167,182.88,182.8,3.9156]
[1736750224148,11.6377167,182.88,182.78,1.9296]
[1736750224347,11.6377167,182.88,182.76,11.6377167]
[1736750225241,11.6377167,182.85,182.72,11.6377167]
[1736750225445,11.6377167,182.82,182.72,11.6377167]
[1736750226145,11.6377167,182.82,182.7,11.6377167]
[1736750226350,11.6377167,182.82,182.71,1.8824]
[1736750227154,11.6377167,182.82,182.77,2.7371]
[1736750227155,14.3741167,182.82,182.77,2.7371]
[1736750227346,11.6377167,182.82,182.77,2.7371]
[1736750227945,11.6377167,182.82,182.79,2.7368]
[1736750228248,11.6377167,182.82,182.71,1.8824]
[1736750228939,14.3741167,182.82,182.71,1.8824]
[1736750229342,11.6377167,182.82,182.71,1.8824]
[1736750229542,2.7367,182.81,182.75,2.7374]
[1736750230045,2.737,182.78,182.71,2.738]
[1736750230244,2.737,182.78,182.68,3.7692]
[1736750230245,11.6377167,182.79,182.68,3.7692]
[1736750230944,2.7373,182.77,182.71,2.7379]
[1736750231140,11.6377167,182.79,182.68,3.7692]
[1736750231550,14.3746167,182.79,182.72,2.7379]
[1736750231851,11.6377167,182.82,182.69,11.6377167]
[1736750232050,2.7358,182.86,182.76,11.6377167]
[1736750232345,11.6377167,182.92,182.79,11.6377167]
[1736750232552,2.7347,182.94,182.82,11.6377167]
[1736750232753,102.75692201,182.95,182.82,11.6377167]
[1736750232955,11.6377167,182.95,182.82,11.6377167]
[1736750233154,11.6377167,182.95,182.87,2.7355]
[1736750233353,18.62024433,182.93,182.78,18.62024433]
[1736750233655,2.7346,182.95,182.88,2.7354]
[1736750233851,18.62024433,182.97,182.81,18.62024433]
[1736750234058,18.62024433,183.06,182.77,5.7216]
[1736750234059,18.62024433,183.0,182.84,18.62024433]
[1736750234348,18.62024433,183.0,182.85,3.8392]
[1736750234750,18.62024433,183.0,182.86,1.9183]
[1736750235054,21.35394433,183.0,182.86,1.9183]
[1736750235256,18.62024433,183.0,182.86,1.9183]
[1736750236047,0.31324,183.07,182.86,1.9183]
[1736750236048,18.62024433,183.03,182.95,2.7344]
[1736750236250,18.62024433,183.06,182.9,18.62024433]
[1736750237052,21.35304433,183.06,182.9,18.62024433]
[1736750237255,18.62024433,183.06,182.9,18.62024433]
[1736750237453,135.51034879,183.04,182.96,2.7342]
[1736750237852,132.77714879,183.04,182.9,18.62024433]
[1736750238052,132.77714879,183.04,182.94,2.7346]
[1736750238356,132.77714879,183.04,182.9,18.62024433]
[1736750238556,132.77714879,183.04,182.98,2.7339]
[1736750239152,132.77714879,183.04,182.9,18.62024433]
[1736750239457,0.31324,183.07,182.93,18.62024433]
[1736750239660,0.31324,183.07,182.94,3.6879]
[1736750240055,0.31324,183.07,182.95,1.8465]
[1736750240559,18.62024433,183.06,182.95,1.8465]
[1736750240961,18.62024433,183.06,182.94,3.6879]
[1736750241460,2.7333,183.03,182.96,2.7343]
[1736750241661,18.62024433,183.06,182.94,3.6879]
[1736750243456,21.35304433,183.06,182.94,3.6879]
[1736750243752,18.62024433,183.06,182.94,3.6879]
[1736750243960,18.62024433,183.03,182.94,3.6879]
[1736750244164,18.62024433,183.03,182.91,1.8465]
[1736750244356,18.62024433,183.0,182.91,1.8465]
[1736750244659,18.62024433,183.03,182.91,1.8465]
[1736750244851,18.62024433,183.03,182.92,3.8767]
[1736750246758,18.62024433,183.03,182.95,2.7344]
[1736750247062,18.62024433,183.0,182.84,18.62024433]
[1736750247261,18.62024433,183.0,182.85,1.9633]
[1736750247469,18.62024433,182.97,182.85,1.9633]
[1736750248263,18.62024433,182.94,182.87,2.7355]
[1736750248459,18.62024433,182.94,182.85,1.9633]
[1736750249461,18.62024433,182.97,182.85,1.9633]
[1736750249671,18.62024433,183.0,182.85,1.9633]
[1736750249965,18.62024433,183.0,182.85,20.58354433]
[1736750250561,19.52774433,183.06,182.88,18.62024433]
[1736750251165,22.26054433,183.06,182.99,2.7338]
[1736750251464,18.62024433,183.06,182.91,18.62024433]
[1736750251665,18.62024433,183.06,182.92,4.1338]
[1736750252068,18.62024433,183.06,183.02,2.7333]
[1736750252268,18.62024433,183.06,182.92,4.1338]
[1736750252460,18.62024433,183.06,182.96,2.7343]
[1736750252661,18.62024433,183.06,182.92,4.1338]
[1736750252864,0.31324,183.07,182.94,18.62024433]
[1736750253064,0.31324,183.07,183.02,2.7333]
[1736750253365,0.31324,183.07,182.95,2.0102]
[1736750253761,0.31324,183.07,183.02,2.7333]
[1736750254165,0.31324,183.07,183.06,2.7328]
[1736750254467,0.31324,183.07,182.97,18.62024433]
[1736750255665,0.31324,183.07,183.05,2.7329]
[1736750256164,0.31324,183.07,182.97,18.62024433]
[1736750256365,0.31324,183.07,183.02,2.7333]
[1736750256566,0.31324,183.07,182.95,2.0102]
[1736750257370,2.7328,183.06,182.98,2.7339]
[1736750257570,21.35304433,183.06,182.95,2.0102]
[1736750257762,18.62024433,183.06,182.95,2.0102]
[1736750258266,18.62024433,183.06,183.01,2.7334]
[1736750258567,0.31324,183.07,182.95,2.0102]
[1736750258961,18.62024433,183.06,182.95,2.0102]
[1736750260874,2.7332,183.04,182.95,2.0102]
[1736750261077,18.62024433,183.06,182.95,2.0102]
[1736750261369,18.62024433,183.06,183.0,2.7337]
[1736750261576,0.31324,183.07,182.95,2.0102]
[1736750261874,0.31324,183.07,183.04,2.733]
[1736750262172,0.31324,183.07,182.95,2.0102]
[1736750262368,0.31324,183.07,182.98,2.7339]
[1736750262568,0.31324,183.07,182.95,2.0102]
[1736750262970,0.31324,183.07,183.04,2.7331]
[1736750263171,0.31324,183.07,182.95,2.0102]
[1736750263573,0.31324,183.07,183.06,2.7328]
[1736750263771,18.62024433,183.12,183.06,2.7328]
[1736750264177,18.62024433,183.09,183.06,2.7328]
[1736750264376,18.62024433,183.12,182.95,2.0102]
[1736750264976,18.62024433,183.12,183.07,2.7326]
[1736750265676,18.62024433,183.12,182.95,2.0102]
[1736750265878,18.62024433,183.09,182.95,2.0102]
[1736750266276,18.62024433,183.09,183.04,2.733]
[1736750266576,18.62024433,183.09,182.95,2.0102]
[1736750266969,18.62024433,183.12,182.97,18.62024433]
[1736750268079,21.35224433,183.12,183.05,2.7328]
[1736750268273,18.62024433,183.12,183.05,2.7328]
[1736750269073,2.7321,183.11,183.05,2.7328]
[1736750269777,2.7323,183.1,183.03,2.7331]
[1736750269978,18.62024433,183.09,183.03,2.7331]
[1736750270376,18.62024433,183.09,182.95,2.0102]
[1736750270681,18.62024433,183.06,182.95,2.0102]
[1736750271181,21.35314433,183.06,183.01,2.7335]
[1736750271578,21.35314433,183.06,183.0,2.7336]
[1736750271779,2.733,183.05,183.0,2.7336]
[1736750272082,18.62024433,183.06,183.0,2.7336]
[1736750272682,18.62024433,183.06,183.02,2.7334]
[1736750272879,18.62024433,183.06,182.95,2.0102]
[1736750273079,18.62024433,183.09,182.95,2.0102]
[1736750273585,21.35264433,183.09,182.99,2.7338]
[1736750273884,18.62024433,183.09,182.95,2.0102]
[1736750274774,2.7329,183.06,183.0,2.7337]
[1736750275279,21.35314433,183.06,183.0,2.7337]
[1736750275582,18.62024433,183.03,182.92,4.1338]
[1736750275776,18.62024433,183.0,182.92,1.9792]
[1736750275980,21.35444433,182.97,182.91,2.735]
[1736750276184,21.35444433,182.97,182.89,76.20875396]
[1736750276185,18.62024433,182.97,182.89,76.20875396]
[1736750277083,18.62024433,183.0,182.89,76.20875396]
[1736750279080,18.62024433,183.0,182.92,2.7348]
[1736750279277,18.62024433,183.0,182.89,76.20875396]
[1736750279576,21.35354433,183.03,182.96,2.7342]
[1736750279778,18.62024433,183.0,182.89,76.20875396]